[Event "26th Womens ECCC 2022"]
[Site "Mayrhofen"]
[Date "2022.10.05"]
[Round "3.15"]
[White "Drljevic, Ljilja"]
[Black "Wagner, Dinara"]
[Result "0-1"]
[ECO "B20"]
[WhiteElo "2172"]
[BlackElo "2390"]
[Annotator "TA"]
[PlyCount "64"]
[EventDate "2022.10.03"]
[EventType "team-tourn"]
[EventCountry "AUT"]
[SourceTitle "playchess.com"]
[Source "ChessBase"]
[SourceQuality "1"]
[TimeControl "40/5400+30:1800+30"]

{[%evp 9,64,-19,0,-21,-21,-23,-27,-32,-38,-54,-49,-39,-45,-48,-42,-68,-67,-62,-77,-69,-67,-60,-72,-93,-107,-102,-83,-143,-113,-200,-186,-202,-183,-273,-275,-269,-259,-422,-346,-311,-345,-325,-329,-371,-372,-379,-379,-433,-423,-420,-400,-516,-454,-604,-595,-1153,-1002]} 1. e4 {[%emt 0:00:03]} c5 {[%emt 0:00:09]} 2. d3 {[%emt 0:00:25]} Nc6 {[%emt 0:00:12]} 3. g3 {[%emt 0:00:07]} Nf6 {[%emt 0:00:12]} 4. Bg2 {[%emt 0:00:08]} d5 {[%emt 0:00:06]} 5. Nd2 {[%emt 0:01:13]} g6 {[%emt 0:00:18]} 6. Ne2 {[%emt 0:03:19][%cal Bg1e2,Be2c3,Bc3e4,Be4g5][%mdl 32] B20: Sicilian: Unusual White 2nd moves.} Bg7 {[%emt 0:01:04]} 7. O-O {[%emt 0:00:33]} O-O {[%emt 0:02:15]} 8. h3 {[%emt 0:04:09] Black has an edge.} e5 {[%emt 0:03:29]} 9. exd5 {[%emt 0:03:57]} Nxd5 {[%emt 0:00:14]} 10. Nc3 {[%emt 0:00:19]} Nde7 {[%emt 0:13:37] [#]} 11. Nc4 $146 {[%emt 0:13:18]} ({Predecessor:} 11. Nde4 b6 12. f4 f5 13. Nf2 Bb7 14. Re1 Qd7 15. Ne2 Rae8 16. c3 Kh8 17. a3 {½-½ (26) Ramo Frontinan,C (2375)-Ricardi,P (2527) Aragon 1999}) 11... Be6 {[%emt 0:05:31]} 12. Re1 {[%emt 0:09:11]} Qd7 {[%emt 0:13:44]} 13. Ne4 {[%emt 0:02:59]} b6 {[%emt 0:01:35]} 14. Ng5 {[%emt 0:08:17]} Bd5 {[%emt 0:01:53]} 15. Nf3 {[%emt 0:00:22][%cal Rf3e5]} f6 {[%emt 0:01:16]} 16. Be3 {[%emt 0:07:23] Black continues to play with concentration.} Rad8 {[%emt 0:03:03]} 17. Qe2 {[%emt 0:05:57]} Nf5 {[%emt 0:05:14]} 18. a4 {[%emt 0:04:13]} ({Better is} 18. c3) 18... Rfe8 {[%emt 0:05:08] Black is more active.} 19. Qf1 {[%emt 0:13:29]} (19. c3 $17) 19... Nb4 $19 {[%emt 0:02:14]} 20. Na3 {[%emt 0:02:43]} Qxa4 {[%emt 0:12:44]} 21. c4 {[%emt 0:05:16]} (21. g4 {is a better defense.} Nxe3 22. Rxe3) 21... Bf7 {[%emt 0:01:21]} 22. Nb5 {[%emt 0:01:12]} Qc2 {[%emt 0:00:52]} 23. Ra3 $2 {[%emt 0:05:17] [#]} (23. g4 Nxe3 24. Rxe3) 23... Rxd3 {[%emt 0:13:33][%cal Bd8d3,Bd3a3,Ba3a2,Ba2g2][%mdl 32]} 24. Rc1 {[%emt 0:01:15]} Nxe3 {[%emt 0:00:09]} 25. fxe3 {[%emt 0:00:33]} Qxb2 {[%emt 0:00:53]} 26. Rb1 {[%emt 0:03:29]} Qxa3 {[%emt 0:02:32]} ({Avoid the trap} 26... Qc2 $2 27. Rc1 Qb2 28. Rxd3 Nxd3 29. Rb1 $19) 27. Nxa3 {[%emt 0:00:03]} Rxa3 {[%emt 0:00:02]} 28. Nd2 {[%emt 0:03:29]} f5 {[%emt 0:02:30][%cal Bf6f5,Bf5f4][%mdl 32] Prevents Ne4.} 29. e4 {[%emt 0:01:04]} Bh6 {[%emt 0:02:32]} 30. Nb3 {[%emt 0:00:35]} f4 {[%emt 0:00:40] Black is clearly winning.} 31. Qc1 {[%emt 0:01:02]} Ra2 {[%emt 0:00:03]} 32. Ra1 {[%emt 0:00:32] [#]} Rxg2+ $1 {[%emt 0:00:20] Weighted Error Value: White=0.62/Black=0.11 (very precise)} 0-1

[Event "26th Womens ECCC 2022"]
[Site "Mayrhofen"]
[Date "2022.10.05"]
[Round "3.16"]
[White "Trippold, Denise"]
[Black "Djukic, Sandra"]
[Result "1/2-1/2"]
[ECO "D28"]
[WhiteElo "2146"]
[BlackElo "2138"]
[Annotator "TA"]
[PlyCount "71"]
[EventDate "2022.10.03"]
[EventType "team-tourn"]
[EventCountry "AUT"]
[SourceTitle "playchess.com"]
[Source "ChessBase"]
[SourceQuality "1"]
[TimeControl "40/5400+30:1800+30"]

{[%evp 14,71,12,21,34,20,20,0,16,-9,18,18,28,18,23,24,26,31,39,21,14,24,12,12,11,16,25,19,19,13,54,41,78,0,0,0,7,7,50,12,50,48,89,37,103,100,95,0,0,0,25,0,83,0,0,0,0,0,0,0]} 1. Nf3 {[%emt 0:00:08]} Nf6 {[%emt 0:00:47]} 2. c4 {[%emt 0:00:23]} e6 {[%emt 0:02:29]} 3. d4 {[%emt 0:05:17]} d5 {[%emt 0:00:48]} 4. e3 {[%emt 0:00:14]} dxc4 {[%emt 0:02:05]} 5. Bxc4 {[%emt 0:00:17]} a6 {[%emt 0:00:03]} 6. O-O {[%emt 0:07:46]} c5 {[%emt 0:01:28]} 7. Qe2 {[%emt 0:02:24]} Nc6 {[%emt 0:09:08]} 8. Rd1 {[%emt 0:02:34]} Qc7 {[%emt 0:13:03] D28: Queen's Gambit Accepted: Classical main line: 7 Qe2 with early ...Nc6.} 9. a3 {[%emt 0:02:16]} b5 {[%emt 0:03:29]} 10. Ba2 {[%emt 0:02:36]} Bb7 {[%emt 0:01:50]} 11. Nc3 {[%emt 0:09:22]} Be7 {[%emt 0:21:22]} 12. dxc5 {[%emt 0:06:51]} Bxc5 {[%emt 0:00:25]} 13. b4 {[%emt 0:01:47]} Bd6 {[%emt 0:03:30]} 14. Bb2 {[%emt 0:03:10]} Rd8 {[%emt 0:07:49]} 15. Rac1 {[%emt 0:01:28]} Qb8 {[%emt 0:00:20] [#]} 16. Bb1 $146 {[%emt 0:04:07]} ({Predecessor:} 16. h3 O-O 17. Ng5 Ne5 18. Rd4 h6 19. Nge4 Nxe4 20. Nxe4 Bxe4 21. Rxe4 Nd3 22. Rf1 Nxb2 23. Qxb2 {0-1 (39) Jakubowski,K (2511)-Dragnev,V (2508) Czech Republic 2018}) 16... Ne7 {[%emt 0:06:19]} 17. h3 {[%emt 0:11:25]} O-O {[%emt 0:03:50]} 18. Ng5 {[%emt 0:08:25][%cal Oc3b5] With the idea Nxb5!} Ng6 {[%emt 0:16:31]} 19. Nce4 {[%emt 0:03:48]} Nxe4 {[%emt 0:00:29]} 20. Nxe4 {[%emt 0:00:46]} Bh2+ {[%emt 0:01:08]} 21. Kh1 {[%emt 0:02:51]} Be5 {[%emt 0:00:05]} (21... Bxe4 $5 22. Bxe4 Be5 $11) 22. Nc5 {[%emt 0:05:22] Hoping for Bxg6.} Bd5 {[%emt 0:00:57]} 23. Be4 {[%emt 0:12:19]} ({But not} 23. Nxa6 $6 {[#]} Bxg2+ $1 24. Kxg2 Qa8+ 25. f3 (25. Kg1 Bxb2 26. Qxb2 Nh4 $11) 25... Bxb2 $11) ({White should try} 23. Bxe5 $16 Qxe5 24. Bd3) 23... Bxe4 $11 {[%emt 0:01:43]} 24. Nxe4 {[%emt 0:00:02]} Bxb2 {[%emt 0:00:38]} (24... h6 {feels hotter.} 25. Nc5 Bxb2 26. Qxb2 Rxd1+ 27. Rxd1 Rd8) 25. Qxb2 {[%emt 0:00:01]} Ne5 {[%emt 0:00:07] [#] And now ...Nd3 would win.} 26. Qc3 {[%emt 0:02:07] Against Nd3} Rc8 {[%emt 0:02:00]} 27. Nc5 {[%emt 0:01:01]} h6 {[%emt 0:01:00]} 28. Qb3 {[%emt 0:03:00] White is much more active.} (28. Qa1 $16) 28... Rfd8 {[%emt 0:00:31]} (28... Qa8 $14) 29. Rxd8+ {[%emt 0:02:28]} Rxd8 {[%emt 0:00:03]} 30. Rd1 {[%emt 0:00:07] Against Rd2} (30. Nxa6 $16 Qa7 31. Nc5) 30... Nc4 {[%emt 0:00:57]} 31. Nxa6 {[%emt 0:00:52]} Rxd1+ {[%emt 0:00:17]} 32. Qxd1 {[%emt 0:00:01]} Qa8 {[%emt 0:00:17]} (32... Qc8 $11 33. Nc5 Nxa3) 33. Nc7 {[%emt 0:00:54]} ({Better is} 33. Nc5 $16) 33... Qxa3 {[%emt 0:00:08] The position is equal.} 34. Nxb5 {[%emt 0:00:38]} Qxb4 {[%emt 0:00:12]} 35. Qd8+ {[%emt 0:00:41]} Kh7 {[%emt 0:00:13] Threatens to win with ...Qb1+.} 36. Qd3+ {[%emt 0:00:05] Weighted Error Value: White=0.19 (very precise) /Black=0.18 (very precise)} 1/2-1/2

[Event "26th Womens ECCC 2022"]
[Site "Mayrhofen"]
[Date "2022.10.05"]
[Round "3.17"]
[White "Sukandar, Irine Kharisma"]
[Black "Enkhtuul, Altan-Ulzii"]
[Result "1-0"]
[ECO "A73"]
[WhiteElo "2401"]
[BlackElo "2295"]
[Annotator "TA"]
[PlyCount "87"]
[EventDate "2022.10.03"]
[EventType "team-tourn"]
[EventCountry "AUT"]
[SourceTitle "playchess.com"]
[Source "ChessBase"]
[SourceQuality "1"]
[TimeControl "40/5400+30:1800+30"]

{[%evp 24,87,13,11,8,4,32,21,28,21,41,29,44,46,62,60,67,49,67,71,81,69,147,87,141,129,153,131,156,156,150,147,150,155,145,116,189,170,247,250,232,236,197,116,191,129,156,150,100,130,102,80,89,0,2406,712,29990,29991,29992,29993,29996,29997,29997,29998,29998,29999]} 1. d4 {[%emt 0:00:04]} c5 {[%emt 0:00:47]} 2. d5 {[%emt 0:00:18]} Nf6 {[%emt 0:00:14]} 3. c4 {[%emt 0:00:44]} e6 {[%emt 0:00:20]} 4. Nc3 {[%emt 0:00:17]} exd5 {[%emt 0:00:07]} 5. cxd5 {[%emt 0:00:06]} d6 {[%emt 0:00:03]} 6. e4 {[%emt 0:00:20]} g6 {[%emt 0:00:10]} 7. Nf3 {[%emt 0:00:20][%cal Bg1f3,Bf3d2,Bd2c4][%mdl 32]} Bg7 {[%emt 0:00:20]} 8. Be2 {[%emt 0:00:13]} O-O {[%emt 0:00:27]} 9. O-O {[%emt 0:00:12]} Bg4 {[%emt 0:03:06]} 10. Nd2 {[%emt 0:01:21]} Bxe2 {[%emt 0:00:17]} 11. Qxe2 {[%emt 0:00:06]} Re8 {[%emt 0:07:24]} 12. f3 {[%emt 0:06:09]} a6 {[%emt 0:01:39]} 13. a4 {[%emt 0:00:15][%cal Ba2a4,Ba4a5][%mdl 32]} Nbd7 {[%emt 0:01:58] A73: Modern Benoni: Classical: Unusual Black 9th moves.} 14. Nc4 {[%emt 0:02:56]} Nb6 {[%emt 0:01:49]} 15. Ne3 {[%emt 0:05:32]} Nh5 {[%emt 0:05:28][%cal Of7f5] The position is equal.} 16. g3 {[%emt 0:05:49] [#]} Bd4 $146 {[%emt 0:04:41]} ({Predecessor:} 16... Qe7 17. a5 Nd7 18. Nc4 f5 19. Be3 Bxc3 20. bxc3 fxe4 21. f4 Ndf6 22. Rfd1 Rad8 {½-½ (41) Reuter,P-Mortensen,H (2270) Lyngby 1991}) 17. Kh1 {[%emt 0:04:59]} Qd7 {[%emt 0:05:42]} 18. a5 {[%emt 0:11:33]} Nc8 {[%emt 0:19:48]} 19. Bd2 {[%emt 0:06:56]} Rb8 {[%emt 0:01:49]} 20. Rae1 {[%emt 0:06:39]} b5 {[%emt 0:01:15]} 21. Ncd1 {[%emt 0:05:06]} b4 {[%emt 0:06:39]} 22. Nc4 {[%emt 0:01:53]} ({Don't blunder} 22. Qxa6 $2 {[#]} Nxg3+ $1 {[%mdl 512]} 23. Kg2 (23. hxg3 {is a self mate.} Qh3+ 24. Kg1 Qxg3+ 25. Kh1 Re5) 23... Nxf1 24. Qxf1 f5 25. exf5 Ne7 26. fxg6 Nxg6 $19) 22... f5 {[%emt 0:08:05]} (22... Na7 $14) 23. Qg2 {[%emt 0:02:53]} (23. g4 $142 Ng7 24. Bf4) 23... Ng7 {[%emt 0:02:37]} (23... Nf6 $142) 24. Nf2 {[%emt 0:05:19]} Na7 {[%emt 0:09:45]} 25. Nd3 {[%emt 0:03:13]} Nb5 {[%emt 0:00:13]} 26. g4 {[%emt 0:03:10]} fxe4 {[%emt 0:09:11]} 27. fxe4 {[%emt 0:00:12]} Rf8 {[%emt 0:00:24]} 28. Bf4 {[%emt 0:02:10]} Rbd8 {[%emt 0:01:12]} 29. h3 {[%emt 0:08:32]} Qb7 {[%emt 0:04:02]} (29... Rf6 $16) 30. Bg3 $18 {[%emt 0:01:08]} Qe7 {[%emt 0:01:38]} (30... Bf6 {was called for.} 31. e5 dxe5) 31. e5 {[%emt 0:04:07]} Rxf1+ {[%emt 0:01:26]} 32. Rxf1 {[%emt 0:00:15] Strongly threatening exd6.} dxe5 {[%emt 0:00:17]} 33. Bxe5 {[%emt 0:01:11]} ({White should try} 33. Ncxe5 $18 {Threatens to win with Nc6.} Bxe5 34. Nxe5 (34. Bxe5 Ne8 $16)) 33... Bxe5 {[%emt 0:00:32]} (33... Ne8 $16) 34. Ndxe5 {[%emt 0:00:09]} ({White should play} 34. Ncxe5 $18 {aiming for Nc6.} Rf8 35. Rxf8+ Qxf8 36. Nd7) 34... Rf8 $16 {[%emt 0:01:26]} 35. Rxf8+ {[%emt 0:01:29]} Qxf8 {[%emt 0:01:28]} 36. d6 {[%emt 0:01:11][%cal Bd5d6,Bd6d7][%mdl 32]} Ne6 {[%emt 0:00:41]} 37. d7 {[%emt 0:01:19] White is more active.} Qf4 {[%emt 0:00:48]} 38. Qf3 {[%emt 0:04:02]} (38. Qd2 $16 {White threatens Qxf4 and mate.} Qf1+ 39. Kh2) 38... Qc1+ {[%emt 0:01:03][%mdl 8192] [#]} (38... Qxf3+ $11 39. Nxf3 Kf8) 39. Kh2 {[%emt 0:00:46]} (39. Kg2 $142 Nd6 40. Qd5 Qc2+ 41. Kf3 Qd1+ 42. Qxd1 Nb7 43. Qd5 Nbd8 44. Nc6) 39... Qc2+ {[%emt 0:00:34]} 40. Kg3 {[%emt 0:00:38] White mates.} Nd8 {[%emt 0:00:34]} 41. Qf6 {[%emt 0:32:43][%csl LRa6,LRd8]} Qc1 {[%emt 0:18:13]} 42. Qxd8+ {[%emt 0:00:00]} Kg7 {[%emt 0:00:02]} 43. Qe7+ {[%emt 0:00:00]} Kh6 {[%emt 0:00:08]} 44. Qf8+ {[%emt 0:00:00] Weighted Error Value: White=0.16 (very precise) /Black=0.33} 1-0

[Event "26th Womens ECCC 2022"]
[Site "Mayrhofen"]
[Date "2022.10.05"]
[Round "3.18"]
[White "Klek, Hanna Marie"]
[Black "Houska, Jovanka"]
[Result "1/2-1/2"]
[ECO "B12"]
[WhiteElo "2301"]
[BlackElo "2354"]
[Annotator "TA"]
[PlyCount "60"]
[EventDate "2022.10.03"]
[EventType "team-tourn"]
[EventCountry "AUT"]
[SourceTitle "playchess.com"]
[Source "ChessBase"]
[SourceQuality "1"]
[TimeControl "40/5400+30:1800+30"]

{[%evp 14,60,0,0,0,0,21,28,36,3,33,-40,-37,-18,-25,-35,-27,-48,-6,-64,-37,-32,-41,-45,-43,-58,18,-74,-26,-27,-32,-22,-31,-75,-60,-66,0,0,19,8,14,0,0,0,0,0,0,0,0]} 1. e4 {[%emt 0:00:03]} c6 {[%emt 0:00:07]} 2. d4 {[%emt 0:00:05]} d5 {[%emt 0:00:05]} 3. e5 {[%emt 0:00:04]} Bf5 {[%emt 0:00:13]} 4. h4 {[%emt 0:00:06]} h5 {[%emt 0:00:04]} 5. c4 {[%emt 0:00:05]} e6 {[%emt 0:00:04]} 6. Nc3 {[%emt 0:00:05]} dxc4 {[%emt 0:00:41]} 7. Bxc4 {[%emt 0:00:09]} Nd7 {[%emt 0:00:05]} 8. Nge2 {[%emt 0:02:15]} Be7 {[%emt 0:00:06] B12: Caro-Kann: Advance Variation.} 9. g3 {[%emt 0:00:09]} b5 {[%emt 0:00:36]} 10. Bb3 {[%emt 0:06:14]} b4 {[%emt 0:01:52] [#] White has an edge.} 11. Nb1 $146 {[%emt 0:02:10]} ({Predecessor:} 11. Na4 Nh6 12. Bxh6 Rxh6 13. Nf4 c5 14. Nxh5 Kf8 15. Nf4 g5 16. Ng2 gxh4 17. Bc2 Bxc2 18. Qxc2 cxd4 {½-½ (31) Nestorovic,N (2467)-Jaferian,K (2179) Sitges 2021}) 11... c5 {[%emt 0:00:27]} 12. Ba4 {[%emt 0:06:35]} ({Better is} 12. O-O $14) 12... Kf8 $15 {[%emt 0:08:20]} 13. O-O $1 {[%emt 0:13:09]} Rc8 {[%emt 0:08:38]} 14. Be3 {[%emt 0:06:00]} Nh6 {[%emt 0:05:06] aiming for ...Bh3.} (14... g5 {feels hotter.} 15. hxg5 Nb6 16. Bb3 Bxg5 17. Bxg5 Qxg5 18. dxc5 h4) 15. Nd2 {[%emt 0:03:27]} Ng4 {[%emt 0:16:09]} 16. Nf3 {[%emt 0:02:57]} (16. Rc1 $11) 16... Nb6 {[%emt 0:02:57]} (16... Be4 {with more complications.} 17. Ng5 Bb7 18. Bf4 Nb6) 17. Bb3 {[%emt 0:08:08]} Nxe3 {[%emt 0:16:13]} 18. fxe3 {[%emt 0:00:07]} Nd5 {[%emt 0:00:08]} 19. Kf2 {[%emt 0:03:39]} cxd4 {[%emt 0:06:33]} (19... c4 $15 20. Bc2 Bh3) 20. exd4 {[%emt 0:02:54]} (20. Nexd4 $11 Bh3 21. Rh1) 20... g5 {[%emt 0:03:10]} (20... g6 $17) 21. hxg5 $11 {[%emt 0:01:03]} Bxg5 {[%emt 0:00:05]} 22. Nxg5 {[%emt 0:01:42]} Qxg5 {[%emt 0:00:05]} 23. Bxd5 {[%emt 0:00:09]} exd5 {[%emt 0:00:08]} 24. Rc1 {[%emt 0:01:11] Prevents Rc2.} Kg7 {[%emt 0:03:15]} (24... h4 $15 25. g4 Bxg4 26. Rxc8+ Bxc8) 25. Qb3 {[%emt 0:01:47][%csl LRb4,LRd5] The position is equal.} Be4 {[%emt 0:19:19]} 26. Qe3 $36 {[%emt 0:02:31][%mdl 2048] White fights for an advantage.} Qg6 {[%emt 0:03:01]} 27. Nf4 {[%emt 0:06:14]} Qf5 {[%emt 0:00:15]} 28. Rxc8 {[%emt 0:03:58]} Rxc8 {[%emt 0:00:06]} 29. Rc1 {[%emt 0:00:09] Hoping for Rxc8.} Rxc1 {[%emt 0:03:32]} 30. Qxc1 {[%emt 0:00:07]} Qg4 {[%emt 0:00:45] Weighted Error Value: White=0.21 (precise) /Black=0.18 (very precise)} 1/2-1/2

[Event "26th Womens ECCC 2022"]
[Site "Mayrhofen"]
[Date "2022.10.05"]
[Round "3.19"]
[White "Arakhamia-Grant, Ketevan"]
[Black "Navrotescu, Andreea"]
[Result "1-0"]
[ECO "C11"]
[WhiteElo "2333"]
[BlackElo "2287"]
[Annotator "TA"]
[PlyCount "81"]
[EventDate "2022.10.03"]
[EventType "team-tourn"]
[EventCountry "AUT"]
[SourceTitle "playchess.com"]
[Source "ChessBase"]
[SourceQuality "1"]
[TimeControl "40/5400+30:1800+30"]

{[%evp 16,81,3,6,12,6,28,30,30,0,0,0,114,31,102,97,100,104,112,112,156,145,139,100,136,123,137,144,180,186,196,174,185,186,193,181,747,750,1137,1164,29990,29991,29991,29992,29992,29992,29992,29989,29988,0,29992,29993,29993,29993,29994,0,29992,29991,29991,29992,29992,29991,29991,29992,29992,0,29987,1118]} 1. e4 {[%emt 0:00:02][%cal Be2e4,Be4e5][%mdl 32]} e6 {[%emt 0:00:05]} 2. d4 {[%emt 0:00:09]} d5 {[%emt 0:00:05]} 3. Nc3 {[%emt 0:00:09]} Nf6 {[%emt 0:00:05]} 4. e5 {[%emt 0:00:19]} Nfd7 {[%emt 0:00:05]} 5. f4 {[%emt 0:00:12]} c5 {[%emt 0:00:06]} 6. Nf3 {[%emt 0:00:07]} Nc6 {[%emt 0:00:05]} 7. Be3 {[%emt 0:00:12]} Be7 {[%emt 0:00:04]} 8. Qd2 {[%emt 0:01:15]} O-O {[%emt 0:00:08]} 9. dxc5 {[%emt 0:03:28]} Qa5 {[%emt 0:00:12] C11: French: Classical System: 4 e5 and 4 Bg5 dxe4.} 10. Be2 {[%emt 0:09:43] Recently 10.a3 got a lot of attention.} Nxc5 {[%emt 0:09:20]} 11. O-O {[%emt 0:12:27] [#]} Rd8 $146 {[%emt 0:04:52][%cal Od5d4] Strongly threatening ...d4! White has an edge.} ({Predecessor:} 11... Na4 12. Nxa4 Qxa4 13. c3 Na5 14. Nd4 Nc4 15. Bxc4 Qxc4 16. f5 exf5 17. Nxf5 Bxf5 18. Rxf5 {0-1 (58) Krysa,L (2532)-Tikhonov,V (2260) Chess.com INT 2021}) 12. Nd4 {[%emt 0:00:37]} Nxd4 {[%emt 0:02:57]} 13. Bxd4 {[%emt 0:07:33]} Bd7 {[%emt 0:04:23]} (13... Na4 $11 {keeps the balance.}) 14. Rad1 {[%emt 0:10:03]} (14. f5 $16) 14... Qc7 {[%emt 0:01:01]} (14... Na4 $14) 15. f5 $1 $16 {[%emt 0:07:55] And now f6 would win.} Bf8 {[%emt 0:00:29]} 16. f6 {[%emt 0:07:38] Black must now prevent fxg7.} g6 {[%emt 0:00:39]} 17. Qe3 {[%emt 0:04:09]} Ne4 {[%emt 0:15:52]} 18. Nxe4 {[%emt 0:16:55]} dxe4 {[%emt 0:00:03]} 19. c3 {[%emt 0:01:23] White is much more active.} Bc6 {[%emt 0:01:44]} 20. Qh3 {[%emt 0:05:04]} Rd5 {[%emt 0:01:45]} 21. Rf4 $1 {[%emt 0:01:04] Hoping for Rh4.} Rxe5 {[%emt 0:00:35][%cal Oe5h5] [#]} 22. Rh4 {[%emt 0:01:29] Prevents Rh5.} h5 {[%emt 0:00:15]} 23. Qg3 {[%emt 0:05:27][%mdl 64] Against Rg5. Pin} Bd6 {[%emt 0:00:50]} 24. Bxe5 {[%emt 0:00:19]} Bxe5 {[%emt 0:00:02] [#]} 25. Qg5 {[%emt 0:00:12]} Bd5 $2 {[%emt 0:06:27]} (25... Ba4) 26. Rf1 $18 {[%emt 0:04:35]} Qb6+ {[%emt 0:07:55]} 27. Kh1 {[%emt 0:00:04] Rxh5 would kill now.} Qxb2 {[%emt 0:00:06]} 28. Rxh5 {[%emt 0:01:05]} Bxf6 {[%emt 0:00:05]} 29. Qxf6 {[%emt 0:00:46][%csl Gf1][%cal Rf6f7]} gxh5 {[%emt 0:00:02]} 30. Qxf7+ {[%emt 0:00:10]} Kh8 {[%emt 0:00:01]} 31. Qf6+ {[%emt 0:00:40]} Kh7 {[%emt 0:00:49]} 32. Qf7+ {[%emt 0:00:05]} Kh8 {[%emt 0:00:08]} 33. Qxh5+ {[%emt 0:00:09]} Kg8 {[%emt 0:00:01]} 34. Qg6+ {[%emt 0:01:20]} Kh8 {[%emt 0:00:01]} 35. Qh5+ {[%emt 0:00:30]} Kg8 {[%emt 0:00:10]} 36. Qg4+ {[%emt 0:00:41]} Kh8 {[%emt 0:00:16]} 37. Qh4+ {[%emt 0:00:25]} Kg8 {[%emt 0:00:44]} 38. Qg3+ {[%emt 0:00:24]} Kh8 {[%emt 0:00:09]} 39. Qe5+ {[%emt 0:00:33]} Kg8 {[%emt 0:00:06]} 40. Qg3+ {[%emt 0:00:34]} Kh8 {[%emt 0:00:17]} 41. Rf4 {[%emt 0:07:14] Weighted Error Value: White=0.62/Black=0.47} 1-0